Cogmind - Beta 10.2 @@@ ROGUE MODE // 2021.03.28 @ 19:16:42 Player: aperiodic Result: Destroyed by H-55 Commando with Gauss Rifle Performance ------------- Evolutions (2) 1000 Regions Visited (7) 1400 Robots Destroyed (122) 610 Value Destroyed (3247) 3247 Prototype IDs (43) 860 Alien Tech Used (0) 0 Bonus (1537) 1537 TOTAL SCORE: 8654 Bonus ------- High Alert Combat Kills 405 Follower Combat Kills 132 Entered Garrisons 200 Used RIF Installer 500 Aligned with FarCom 300 Cogmind --------- Core Integrity 0/550 Matter 236/300 Energy 200/200 System Corruption 1% Temperature Cool (0) Movement Flying (50) Location -8/Materials Parts ------- > --- POWER (1) -------- Cold Fusion Reactor > --- PROPULSION (4) --- Flying Fortress v7 > --- UTILITY (4) ------ Large Storage Unit Large Storage Unit Experimental Targeting Computer Hardened Medium Armor Plating > --- WEAPON (2) ------- Advanced EMP Blaster Makeshift Axe > --- INVENTORY (16) --- Superbattery (2000) Experimental Sensor Array Hacking Suite Hacking Suite Relay Coupler [NC] (22) Relay Coupler [NC] (29) Relay Coupler [NC] (23) System Purifier Advanced Recalibrator AWS/Thermal Flak Gun Flak Gun 8R-AWN's Boregun Improved Datajack Deploy-a-Sentry Peak State ------------ > --- POWER ------------ Cold Fusion Reactor > --- PROPULSION ------- Flying Fortress v7 > --- UTILITY ---------- Large Storage Unit Large Storage Unit Experimental Sensor Array Experimental Targeting Computer > --- WEAPON ----------- 8R-AWN's Boregun Advanced EMP Blaster > --- INVENTORY -------- Superbattery Hardened Medium Armor Plating Hacking Suite Relay Coupler [NC] Relay Coupler [NC] Relay Coupler [NC] System Purifier Advanced Recalibrator AWS/Thermal Flak Gun Flak Gun Flak Gun Improved Datajack Makeshift Axe Deploy-a-Sentry [Rating: 73] Favorites ----------- Power Ion Engine Engine Ion Engine Power Core Reinforced Fission Core Reactor Cold Fusion Reactor Propulsion Light Treads Treads Light Treads Leg Advanced Myomer Leg Wheel Armored Huge Wheel Flight Unit Flying Fortress v7 Utility Large Storage Unit Device Experimental Sensor Array Storage Large Storage Unit Processor Experimental Targeting Computer Hackware Hacking Suite Protection Medium Armor Plating Weapon Autogun Energy Gun Small Laser Ballistic Gun Autogun Launcher Advanced EMP Blaster Slashing Weapon Makeshift Axe Special Melee Weapon Improved Datajack Build | -11 -10 -10 -10 -9 -8 -8 -8 ------- Run | Scr Mat Min Exi Min Mat Gar Mat Slots Evolved 4 | . . . . . 4 . . Power . | . . . . . . . . Propulsion 2 | . . . . . 2 . . Utility 2 | . . . . . 2 . . Weapon . | . . . . . . . . Parts Attached 104 | 6 10 . 25 1 35 5 22 Power 7 | 1 . . 3 . 2 . 1 Engine 1 | 1 . . . . . . . Core 3 | . . . 2 . 1 . . Reactor 3 | . . . 1 . 1 . 1 Propulsion 15 | 2 . . 3 1 8 1 . Treads 3 | 2 . . 1 . . . . Leg 7 | . . . 2 1 4 . . Wheel 4 | . . . . . 4 . . Hover . | . . . . . . . . Flight 1 | . . . . . . 1 . Utility 39 | 1 2 . 14 . 7 3 12 Device 11 | . . . 4 . 2 . 5 Storage 9 | 1 2 . 4 . . 1 1 Processor 1 | . . . . . . 1 . Hackware 4 | . . . . . 3 . 1 Protection 14 | . . . 6 . 2 1 5 Artifact . | . . . . . . . . Weapon 43 | 2 8 . 5 . 18 1 9 Energy Gun 2 | 1 . . 1 . . . . Energy Cannon . | . . . . . . . . Ballistic Gun 18 | 1 5 . 3 . 6 . 3 Ballistic Cannon . | . . . . . . . . Launcher 15 | . 3 . 1 . 9 . 2 Special Weapon . | . . . . . . . . Impact Weapon . | . . . . . . . . Slashing Weapon 7 | . . . . . 3 1 3 Piercing Weapon . | . . . . . . . . Special Melee Weapon 1 | . . . . . . . 1 Unidentified Prototypes 9 | . . . 6 . 2 1 . Parts Lost 18 | . 1 . 9 . 7 . 1 Power 2 | . . . 1 . 1 . . Propulsion 5 | . . . 2 . 3 . . Utility 6 | . . . 4 . 2 . . Weapon 5 | . 1 . 2 . 1 . 1 Highest Loss Streak 9 | . 1 . 9 . 2 . 1 Average Slot Usage (%) 86 | . 99 100 85 85 83 69 69 Engine 6 | . 14 14 6 . . . . Core 2 | . . . 4 14 6 . . Reactor 2 | . . . 2 . 2 9 8 Treads 12 | . 28 28 13 . . . . Leg 6 | . . . 9 28 14 . . Wheel 2 | . . . . . 8 17 . Flight 1 | . . . . . . . 9 Device 2 | . . . 4 . . 1 4 Storage 20 | . 27 28 15 28 18 18 18 Processor 1 | . . . . . . 7 9 Hackware 2 | . . . . . 14 2 1 Protection 2 | . . . 5 . 2 3 2 Energy Gun 3 | . 9 . 1 14 1 . . Ballistic Gun 14 | . 17 28 18 . 9 . 3 Launcher 2 | . . . 2 . 2 4 5 Slashing Weapon 1 | . . . . . 1 4 7 Naked Turns . | . . . . . . . . Heaviest Build 78 | 11 43 43 77 77 78 66 71 Greatest Support 72 | 40 40 40 50 50 70 72 72 Greatest Overweight (x) 9 | 1 1 1 9 1 2 1 . Average Overweight (x) . | . . 1 . 1 1 . . Largest Inventory Capacity 18 | 6 16 16 18 18 18 18 18 Average Capacity 15 | 5 15 16 11 18 18 18 16 Most Carried 18 | 5 14 16 18 18 18 18 18 Average Carried 13 | 2 10 14 8 18 16 17 16 Final Capacity 18 | 6 16 16 18 18 18 18 16 Final Carried 18 | 2 13 16 18 18 17 17 16 Class Distribution -------------------- 84% | Mutant 15% | Scavenger-Mutant Dominant Class ---------------- Mutant | -10/Materials Mutant | -10/Mines Mutant | -10/Exiles Mutant | -9/Mines Mutant | -8/Materials Mutant | -8/Garrison Mutant | -8/Materials Resources | -11 -10 -10 -10 -9 -8 -8 -8 ----------- Run | Scr Mat Min Exi Min Mat Gar Mat Matter Collected 3136 | 211 531 96 1146 10 738 154 250 Remotely . | . . . . . . . . Salvage Created 4583 | . 546 181 416 112 1908 684 736 Parts 289 | . 34 11 63 13 91 31 46 Haulers Intercepted 9 | . 2 . . . 3 . 4 Recyclers Shooed 4 | . . 1 . . 2 . 1 Parts Field Recycled . | . . . . . . . . Retrieved Matter . | . . . . . . . . Parts Self-Destructed . | . . . . . . . . Prevented . | . . . . . . . . Kills | -11 -10 -10 -10 -9 -8 -8 -8 ------- Run | Scr Mat Min Exi Min Mat Gar Mat Combat Hostiles Destroyed 87 | . 11 4 3 7 32 18 12 Melee 16 | . . . . . 4 4 8 Guns 30 | . 9 4 1 7 9 . . AOE 37 | . 2 . 2 . 18 12 3 Classes Destroyed 14 | . 5 1 2 . 5 . 1 Worker 3 | . . . . . 3 . . Builder 3 | . . . . . 3 . . Tunneler 1 | . . . . . 1 . . Hauler 9 | . 2 . . . 3 . 4 Recycler 3 | . . . . . 3 . . Operator 4 | . 1 . . . . . 3 Watcher 3 | . 2 . . . 1 . . Swarmer 31 | . 3 . . 7 9 8 4 Grunt 36 | . 8 3 . . 19 5 1 Brawler 1 | . . . . . . . 1 Sentry 14 | . . 1 . . 3 5 5 Hunter 2 | . . . . . 1 . 1 Zionite 8 | . . . 8 . . . . Assembled 2 | . . . 2 . . . . Best Kill Streak 13 | . 2 2 4 4 11 13 5 Combat Bots Only 13 | . 2 2 2 4 6 13 5 Max Kills in Single Turn 5 | . 2 1 2 1 3 5 2 Gunslinging . | . . . . . . . . Exploded 5 | . 2 . 2 . 2 5 2 Melee 1 | . . . . . 1 1 1 Uniques/NPCs Destroyed 4 | . . . 4 . . . . 8R-AWN (-10/Exiles) EX-DEC (-10/Exiles) EX-BIN (-10/Exiles) EX-HEX (-10/Exiles) Combat | -11 -10 -10 -10 -9 -8 -8 -8 -------- Run | Scr Mat Min Exi Min Mat Gar Mat Damage Taken 4460 | . 125 130 1243 91 1894 547 430 Core 794 | . 22 . 199 9 364 105 95 Absorbed by Shields 42 | . . . . . . 42 . Core Remaining (%) 54 | 100 . . . 8 . . . Volleys Fired 269 | . 40 12 102 . 85 12 18 Largest 2 | . 2 2 2 . 2 1 1 Hottest 70 | . 70 46 53 . 53 36 36 Shots Fired 450 | . 74 24 174 15 133 12 18 Gun 387 | . 70 24 171 15 98 . 9 Cannon . | . . . . . . . . Launcher 63 | . 4 . 3 . 35 12 9 Special . | . . . . . . . . Kinetic 344 | . 42 24 171 . 98 . 9 Thermal 43 | . 28 . . 15 . . . Explosive 7 | . 4 . 3 . . . . Electromagnetic 56 | . . . . . 35 12 9 Robot Hit Streak 20 | . 10 14 12 3 20 8 3 Robot Miss Streak 7 | . 4 1 5 1 7 1 1 Penetration Max 1 | . . . 1 . . . . Secondary Targets 3 | . . 1 1 . 1 . . Max Gunslinging Chain 1 | . . 1 1 . 1 . . Autonomous 15 | . . . . 15 . . . Shots Hit Robots 346 | . 49 21 106 10 108 17 35 Core Hits 183 | . 25 8 33 7 71 21 18 Critical Hits 19 | . 1 . 14 . 2 . 2 Critical Kills 3 | . 1 . 2 . . . . Critical Parts Destroyed 13 | . . . 9 . 2 . 2 Melee Attacks 106 | . . . . . 27 33 46 Impact . | . . . . . . . . Slashing 106 | . . . . . 27 33 46 Piercing . | . . . . . . . . Sneak Attacks 8 | . . . . . 1 . 7 Combat Hostiles 1 | . . . . . . . 1 Follow-up Attacks . | . . . . . . . . Damage Inflicted 10786 | . 668 302 1750 311 4275 1425 2055 Guns 4082 | . 620 300 1658 311 1174 . 19 Cannons . | . . . . . . . . Explosions 3750 | . 45 . 92 . 2310 966 337 Melee 2936 | . . . . . 778 459 1699 Ramming 18 | . 3 2 . . 13 . . Kinetic 3523 | . 372 300 1658 . 1174 . 19 Thermal 1056 | . 248 . . 311 306 146 45 Explosive 137 | . 45 . 92 . . . . Electromagnetic 3116 | . . . . . 2004 820 292 Impact . | . . . . . . . . Slashing 2936 | . . . . . 778 459 1699 Piercing . | . . . . . . . . Highest Corruption 2 | . . . . . 2 2 1 Average Corruption 1 | . . . . . 1 1 1 Corruption Purged 2 | . . . . . . 2 . Effects 16 | . . . . . 13 1 2 Message Errors 1 | . . . . . 1 . . Energy Discharges 4 | . . . . . 2 1 1 Data Loss (minor) 3 | . . . . . 2 . 1 Targeting Errors 7 | . . . . . 7 . . Weapon Failures 1 | . . . . . 1 . . Overload Shots . | . . . . . . . . Overflow Damage 300 | . . . . . 214 28 58 Projectiles . | . . . . . . . . Explosions 177 | . . . . . 137 28 12 Melee 123 | . . . . . 77 . 46 Knockbacks . | . . . . . . . . Impact . | . . . . . . . . Kinetic . | . . . . . . . . Secondary . | . . . . . . . . Self-Inflicted Damage 269 | . . . . . 179 52 38 Shots 17 | . . . . . 12 3 2 Rammed 5 | . 2 2 . . 1 . . Targets Rammed 5 | . 2 2 . . 1 . . Kicked . | . . . . . . . . Crushed . | . . . . . . . . Highest Temperature 410 | . 64 32 410 . 275 . 17 Average Temperature 83 | . 17 11 124 . 62 . 11 Received Heat Transfer 1041 | . 72 69 . . 657 162 81 Effects 5 | . . . 4 . 1 . . Shutdowns 2 | . . . 2 . . . . Energy Bleed 1 | . . . . . 1 . . Matter Decay 1 | . . . 1 . . . . Short Circuit 1 | . . . 1 . . . . Siege Activations . | . . . . . . . . Robots Corrupted 5 | . . . . . 2 2 1 Combat Hostiles 4 | . . . . . 1 2 1 Parts Fried 25 | . . . . . 15 7 3 Impact Corruptions . | . . . . . . . . Robots Melted . | . . . . . . . . Combat Hostiles . | . . . . . . . . Parts Melted 1 | . . . . . . 1 . Heat Transferred 1670 | . 550 . . 370 450 250 50 Parts Sabotaged . | . . . . . . . . Parts Stolen . | . . . . . . . . Parts Stripped . | . . . . . . . . Power Chain Reactions 14 | . . . . . 11 2 1 Missiles Intercepted . | . . . . . . . . Alert | -11 -10 -10 -10 -9 -8 -8 -8 ------- Run | Scr Mat Min Exi Min Mat Gar Mat Peak Influence 1036 | . 182 125 . 167 648 1036 639 Initial 505 | . . 17 . . . 421 505 Average 231 | . 48 37 . 84 164 811 475 Maximum Alert Level 3 | . . . . . 2 3 2 Low Security (%) 64 | 100 100 100 . 100 66 . . Level 1 5 | . . . . . 16 . 14 Level 2 23 | . . . . . 16 30 85 Level 3 6 | . . . . . . 69 . Level 4 . | . . . . . . . . Level 5 . | . . . . . . . . High Security . | . . . . . . . . Max Security . | . . . . . . . . Squads Dispatched 17 | . 3 . . 1 10 . 3 Investigation 5 | . 2 . . . 2 . 1 Extermination . | . . . . . . . . Reinforcement 4 | . 1 . . . 1 . 2 Assault 1 | . . . . 1 . . . Garrison 7 | . . . . . 7 . . Intercept . | . . . . . . . . Construction Impeded 1 | . . . . . 1 . . Haulers Reinforced . | . . . . . . . . Stealth | -11 -10 -10 -10 -9 -8 -8 -8 --------- Run | Scr Mat Min Exi Min Mat Gar Mat Distress Signals 7 | . 1 . . . 2 . 4 Communications Jammed . | . . . . . . . . Distress Signals . | . . . . . . . . Times Spotted 150 | . 22 9 30 7 43 14 25 Peak Tracking Total 11 | . 4 3 9 3 5 11 4 Tactical Retreats 20 | . . . 4 . 9 2 5 Traps | -11 -10 -10 -10 -9 -8 -8 -8 ------- Run | Scr Mat Min Exi Min Mat Gar Mat Traps Triggered 5 | . . . . . 1 4 . Indirectly 1 | . . . . . 1 . . Trap Hack Attempts . | . . . . . . . . Triggered . | . . . . . . . . Disarmed . | . . . . . . . . Reprogrammed . | . . . . . . . . Reused . | . . . . . . . . Traps Extracted . | . . . . . . . . Installed . | . . . . . . . . Triggered . | . . . . . . . . Exploded 2 | . . . 2 . . . . Machines | -11 -10 -10 -10 -9 -8 -8 -8 ---------- Run | Scr Mat Min Exi Min Mat Gar Mat Machines Disabled 20 | . 1 . 11 . 4 2 2 Max in Single Turn 2 | . 1 . 2 . 2 1 2 Garrison Relay 1 | . . . . . . 1 . Machines Sabotaged . | . . . . . . . . Garrisons Compromised . | . . . . . . . . Overloaded Fab Kills . | . . . . . . . . Fab Network Shutdowns . | . . . . . . . . Hacking | -11 -10 -10 -10 -9 -8 -8 -8 --------- Run | Scr Mat Min Exi Min Mat Gar Mat Machines Accessed 26 | . 7 . 2 1 7 . 9 Terminals 18 | . 6 . . 1 4 . 7 Fabricators . | . . . . . . . . Repair Stations 3 | . . . . . 1 . 2 Recycling Units 1 | . 1 . . . . . . Scanalyzers 1 | . . . . . 1 . . Garrison Access 1 | . . . . . 1 . . Total Hacks 89 | . 31 . 2 3 24 . 29 Successful 54 | . 16 . 2 1 23 . 12 Failed 34 | . 14 . . 2 1 . 17 Catastrophic 3 | . 1 . . . 1 . 1 Database Lockouts 1 | . 1 . . . . . . Manual 52 | . 24 . 1 3 15 . 9 Terminals 72 | . 30 . . 3 17 . 22 Fabricators . | . . . . . . . . Repair Stations 11 | . . . . . 4 . 7 Recycling Units 1 | . 1 . . . . . . Scanalyzers 2 | . . . . . 2 . . Garrison Access 1 | . . . . . 1 . . Terminal Hacks 24 | . 9 . 2 . 8 . 5 Record 1 | . . . 1 . . . . Robot Analysis 4 | . 2 . . . 2 . . Prototype ID Bank 6 | . 3 . . . 2 . 1 Branch Access Points 1 | . . . . . 1 . . Terminal Index 2 | . 1 . . . . . 1 Unreport Threat 3 | . . . . . 1 . 2 Locate Traps 3 | . 2 . . . . . 1 Hauler Manifests 2 | . 1 . . . 1 . . Zone Layout 1 | . . . . . 1 . . EX-Prototype ID Bank 1 | . . . 1 . . . . Fabricator Hacks . | . . . . . . . . Repair Station Hacks 7 | . . . . . 4 . 3 Scan Component 4 | . . . . . 2 . 2 Repair 3 | . . . . . 2 . 1 Recycling Unit Hacks . | . . . . . . . . Scanalyzer 2 | . . . . . 2 . . Insert Component 1 | . . . . . 1 . . Analyze 1 | . . . . . 1 . . Garrison Access Hacks 1 | . . . . . 1 . . Unlock Access 1 | . . . . . 1 . . Unauthorized Hacks 20 | . 7 . . 1 8 . 4 Terminals 19 | . 6 . . 1 8 . 4 Track 7 | . 3 . . . 3 . 1 Assimilate 1 | . . . . . 1 . . Botnet 6 | . 2 . . . 2 . 2 Disrupt 2 | . . . . 1 1 . . Operators 3 | . 1 . . . 1 . 1 Fabricators . | . . . . . . . . Repair Stations . | . . . . . . . . Recycling Units 1 | . 1 . . . . . . Tunnel 1 | . 1 . . . . . . Scanalyzers . | . . . . . . . . Garrison Access . | . . . . . . . . Data Cores Recovered 1 | . . . . . . . 1 Used . | . . . . . . . . Hacking Detections 20 | . 6 . . 1 4 . 9 Full Trace Events 3 | . 1 . . . 1 . 1 Feedback Events 1 | . . . . . 1 . . Corruption 1 | . . . . . 1 . . Feedback Blocked . | . . . . . . . . Robot Schematics Acquired . | . . . . . . . . Robots Built . | . . . . . . . . Matter . | . . . . . . . . Time . | . . . . . . . . Total Robot Build Rating . | . . . . . . . . Part Schematics Acquired 1 | . . . . . 1 . . Parts Built . | . . . . . . . . Matter . | . . . . . . . . Time . | . . . . . . . . Total Part Build Rating . | . . . . . . . . Parts Repaired 3 | . . . . . 2 . 1 Time 240 | . . . . . 160 . 80 Parts Recycled . | . . . . . . . . Recycled Matter . | . . . . . . . . Retrieved Matter . | . . . . . . . . Retrieved Components . | . . . . . . . . Parts Scanalyzed 1 | . . . . . 1 . . Part Schematics Acquired 1 | . . . . . 1 . . Parts Damaged 1 | . . . . . 1 . . Bothacking | -11 -10 -10 -10 -9 -8 -8 -8 ------------ Run | Scr Mat Min Exi Min Mat Gar Mat Used RIF Installer 1 | . . . . . . 1 . Robots Hacked . | . . . . . . . . Non-combat . | . . . . . . . . Combat . | . . . . . . . . Robot Hacks Applied . | . . . . . . . . Relay Couplers Released 4 | . . . . . . 4 . Machine Destruction 4 | . . . . . . 4 . Robots Rewired . | . . . . . . . . Allies Hacked . | . . . . . . . . Hacks Repelled . | . . . . . . . . Allies | -11 -10 -10 -10 -9 -8 -8 -8 -------- Run | Scr Mat Min Exi Min Mat Gar Mat Total Allies 5 | . . 3 . 1 1 . . Largest Group 3 | . . 3 . . 1 . . Highest-Rated Group 40 | . . 40 . . 31 . . Highest-Rated Ally 31 | . . 16 . . 31 . . Total Orders 2 | . . 2 . . . . . STAY 1 | . . 1 . . . . . FOLLOW 1 | . . 1 . . . . . Ally Attacks 23 | . . 19 . . 4 . . Total Damage 331 | . . 267 . . 64 . . Kills 4 | . . 4 . . . . . Allies Corrupted . | . . . . . . . . Allies Melted . | . . . . . . . . Intel | -11 -10 -10 -10 -9 -8 -8 -8 ------- Run | Scr Mat Min Exi Min Mat Gar Mat Robot Analysis Total 4 | . 2 . . . 2 . . Derelict Logs Recovered 3 | . . 2 . 1 . . . Drone Launches . | . . . . . . . . Drone Recoveries . | . . . . . . . . Exploration | -11 -10 -10 -10 -9 -8 -8 -8 ------------- Run | Scr Mat Min Exi Min Mat Gar Mat Turns Passed 9393 | 58 1595 1266 2810 529 1152 653 1330 Spaces Moved 4988 | 45 703 365 1534 327 540 375 1099 Core 32 | 24 . . 8 . . . . Treads 1792 | 21 703 365 703 . . . . Legs 1362 | . . . 823 327 212 . . Wheels 668 | . . . . . 328 340 . Hover . | . . . . . . . . Flight 1134 | . . . . . . 35 1099 Fastest Speed 50 | 50 160 180 50 160 110 50 50 Average Speed 131 | 102 176 180 160 160 128 104 50 Slowest Speed 500 | 160 180 180 500 160 180 110 50 Overloaded Moves . | . . . . . . . . Propulsion Burnouts . | . . . . . . . . Robots Hopped 2 | . . . . . . . 2 Cave-ins Triggered . | . . . . . . . . Exploration Rate (%) 58 | 3 97 50 90 76 30 49 73 Regions Visited 7 Branch Regions 3 Pre-discovered Areas 3 | . 1 1 1 . . . . Known Exits Taken 1 | . . . . . 1 . . Unknown Exits Taken 5 | 1 1 1 1 1 . . . Scrap Searched 2 | . . 1 . 1 . . . Spaces Dug 31 | . 8 . . . 1 8 14 Terrain Destroyed 132 | . 29 . 22 5 40 10 26 Melee 21 | . . . . . 1 8 12 Projectile 17 | . . . 5 5 . . 7 AOE 94 | . 29 . 17 . 39 2 7 Terrain Rammed . | . . . . . . . . Walls Destroyed . | . . . . . . . . Machines Disabled . | . . . . . . . . Actions | -11 -10 -10 -10 -9 -8 -8 -8 --------- Run | Scr Mat Min Exi Min Mat Gar Mat Total 7379 | 56 989 954 1780 333 870 590 1807 Wait 1740 | . 218 573 41 2 159 138 609 Move 4977 | 44 702 364 1533 326 539 374 1095 Hop 2 | . . . . . . . 2 Pick Up 93 | 6 15 3 41 2 13 5 8 Fast Attach 13 | 2 . . 4 . 4 . 3 Attach 38 | 4 2 . 14 . 16 2 . Detach 7 | . . . 2 . 4 1 . Swap 53 | . 8 . 7 1 15 3 19 Drop 56 | . 2 . 36 2 7 2 7 Fire 269 | . 40 12 102 . 85 12 18 Melee 106 | . . . . . 27 33 46 Ram 1 | . . . . . 1 . . Kick . | . . . . . . . . Crush 4 | . 2 2 . . . . . Escape Stasis 20 | . . . . . . 20 . Rewire . | . . . . . . . . Trap . | . . . . . . . . Miscellaneous . | . . . . . . . . Route ------- -11/Scrapyard -10/Materials (discovered 4 exits: [*Mat x3] / [*Min]) -10/Mines (discovered 2 exits: [*Mat] / *Exi) -10/Exiles -9/Mines -8/Materials (discovered 3 exits: *Fac x2 / Gar) -8/Garrison -8/Materials (discovered 2 exits: *Fac x2) History --------- Turn | Location | Event 3 | -11/Scrapyard | Discovered new exit (range 15) 59 | -11/Scrapyard | Entered Materials 318 | -10/Materials | Build established: Mutant 433 | -10/Materials | Discovered new exit (range 16) 904 | -10/Materials | Discovered new exit (range 9) 1083 | -10/Materials | Discovered new exit (range 16) 1352 | -10/Materials | Discovered new exit (range 7) 1465 | -10/Materials | Central database locked down 1654 | -10/Materials | Entered Mines 1692 | -10/Mines | Assisted by bots powering up and referring to "LRC-V3" 1732 | -10/Mines | Learned location of 1 exit from Materials 1878 | -10/Mines | Assembled infested the area 1883 | -10/Mines | Assisted by a Guerilla fighting off Assembled 2642 | -10/Mines | Learned location of Zion (-6) 2694 | -10/Mines | Deemed a non-threat by the Exiles lab entrance 2834 | -10/Mines | Discovered new exit (range 13) 2913 | -10/Mines | Discovered new exit (range 5) 2920 | -10/Mines | Entered Exiles 2964 | -10/Exiles | Met 8R-AWN 2994 | -10/Exiles | Met EX-HEX 3082 | -10/Exiles | Met EX-DEC 3205 | -10/Exiles | Discovered new exit (range 10) 3326 | -10/Exiles | Met EX-BIN 3356 | -10/Exiles | Aligned with FarCom system 3358 | -10/Exiles | Given EX-Vault access code 3400 | -10/Exiles | Opened EX-Vault 3414 | -10/Exiles | Found Flying Fortress v7 3417 | -10/Exiles | Found Superbattery 3425 | -10/Exiles | Found AWS/Thermal 3466 | -10/Exiles | Warned to stay clear of 0b10 Research branches 4097 | -10/Exiles | Attacked by the Exiles 4293 | -10/Exiles | Core integrity fell below 50% 4319 | -10/Exiles | Core integrity fell below 20% 4323 | -10/Exiles | Destroyed 8R-AWN 4336 | -10/Exiles | Lost 9 parts (1p2n4u2w) 4340 | -10/Exiles | Found Prototype Ballistic Gun 4341 | -10/Exiles | Identified 8R-AWN's Boregun 4711 | -10/Exiles | Destroyed EX-DEC 4722 | -10/Exiles | Build established: Scavenger-Mutant 4727 | -10/Exiles | Destroyed EX-BIN 4825 | -10/Exiles | Destroyed EX-HEX 4895 | -10/Exiles | Found Prototype Device 4895 | -10/Exiles | Identified System Purifier 5236 | -10/Exiles | Found Deploy-a-Sentry 5345 | -10/Exiles | Found Prototype Processor 5691 | -10/Exiles | Build established: Mutant 5730 | -10/Exiles | Stole four prototypes: AWS/Thermal, Flying Fortress v7, Superbattery, Deploy-a-Sentry 5730 | -10/Exiles | Entered Mines 5785 | -9/Mines | Found a damaged Exp. Sensor Array with a note attached 5790 | -9/Mines | Found Prototype Device 5929 | -9/Mines | Found a hidden stash of uninstalled traps 6165 | -9/Mines | A weapon hastily lodged in a ceiling crevice suddenly fell to the ground 6239 | -9/Mines | Learned Materials garrison access intel 6245 | -9/Mines | Discovered new exit (range 7) 6246 | -9/Mines | Met a Derelict testing a Signal Generator 6259 | -9/Mines | Entered Materials 6259 | -8/Materials | Accompanied by 1 ally 6259 | -8/Materials | Evolved 4 slots: Propulsion x2, Utility x2 6260 | -8/Materials | Identified exit to Factory 6261 | -8/Materials | Loaded intel: 1 garrison access location 6590 | -8/Materials | Garrison activated, responded to threat 6637 | -8/Materials | Build established: Scavenger-Mutant 6802 | -8/Materials | Discovered exit to Factory (range 5) 6828 | -8/Materials | Repaired Adv. EMP Blaster? 6919 | -8/Materials | Identified Exp. Sensor Array 6969 | -8/Materials | Garrison activated, responded to threat 7002 | -8/Materials | Core integrity fell below 50% 7051 | -8/Materials | Repaired Broken Exp. Sensor Array? 7120 | -8/Materials | Build established: Mutant 7332 | -8/Materials | Garrison activated, responded to threat 7408 | -8/Materials | Identified exit to Garrison 7411 | -8/Materials | Entered Garrison 7506 | -8/Garrison | Identified Exp. Targeting Computer 7599 | -8/Garrison | Triggered checkpoint 7615 | -8/Garrison | Triggered checkpoint 7645 | -8/Garrison | Destroyed 13 combat bots 7696 | -8/Garrison | Discovered new exit (range 13) 7721 | -8/Garrison | Installed Relay Interface Framework 7750 | -8/Garrison | Triggered checkpoint 7802 | -8/Garrison | Core integrity fell below 20% 7845 | -8/Garrison | Garrison Relay disabled 8064 | -8/Garrison | Entered Materials 8230 | -8/Materials | Discovered exit to Factory (range 15) 8554 | -8/Materials | Discovered exit to Factory (range 11) 8947 | -8/Materials | Repaired Cold Fusion Reactor 9394 | -8/Materials | Destroyed by H-55 Commando with Gauss Rifle Last Messages --------------- 09243_ Sneak attack on O-16 Technician. 09243_ O-16 Technician destroyed. 09246_ Acquired Hacking Suite. 09260_ Dropped Flak Gun. 09260_ Acquired Hacking Suite. 09268_ HV Slug penetrates Earth. 09272_ HV Slug penetrates Wall. 09276_ HV Slug penetrates Earth. 09278_ HV Slug penetrates Wall. 09278_ HV Slug penetrates Earth. 09280_ HV Slug penetrates Wall. 09288_ U-05 Engineer builds a Wall. 09359_ System corrupted: Component data lost. 09387_ Slug penetrates Matter Filter. 09387_ Matter Filter disabled. 09387_ Acquired 2 matter. 09388_ H-55 Commando suffers critical hit. 09388_ Destroyed Assault Rifle. 09392_ Slug penetrates Matter Filter. 09393_ Acquired 2 matter. Map ----- +----------------------------------------------------+ | ???????????????#####?###?????????????????????????? | | ???????????????# """ ?????????????????????????? | | ???????????????# """ #????????????????????????? | | ???????????????# """ #????????????######??????? | | ???????????????# #???????###### ######?? | | ????????????????" #???????# #?? | | ?????????????????? #???????# T #?? | | ??????????????????? #######?# #### ##+##### | | ???????????????????? =% # ###+##?## ###* | | ???o????????????????##+## ## # #?# //* | | ?????????????????####/ + = ## * ! + #?# /* | | ?????????????????# ## # # #?# /* | | ?????????????????# ## ## "T"??# #?# | | ?????????????????# ## ## "????# #?# | | ?????????????????# ## #???????# =######### | | ?????????????????# # ##+########+###[%+=[ | | ?????????????????# # !#! "T" | | ?????????????????# #! # "" | | ?????????????????# # #####+######### # "" | | ?????????????????#+##+###### ????? # # " | | ?????????????????# g # "" ! ??? / # | | ?????????????????# """"""" # "Y ? #=%# [ | | ?????????????????# """"""" # "" "" #%!# | | ?????????????????# """"""" # "" # ######### | | ?????????????????# """""%%h# """ # #???????? | | ?????????????????# """"""@ # ! # #???????? | | ?????????????????# [############ #???????? | | ?????????????????# ! ## ## ##??????? | | ??????????????# ###########?? # u ]#??????? | | ??????????????## #???????????????? r+ #??????? | | ??????????????# #???????????#????????# T #??????? | | ??????????????##????????????# ??????# #??????? | | ????????? ????????????????# ????## ##??????? | | ????????? ??????????????# ???# #???????? | | ????????? ???????????# ## #??????## | | ????????? #??????????# + ######### | | ????????? #????????????######### + | | ????????? #????????????????????#k ### """ [ | | ##+#####? #????????????????????#u #?# """ [ | | ## #????????????????????# #?# """ [ | | """ ## #????????????????????# #?# | | """"" !## #????????????????????# #?# """ | | """"" ## +????????????????????# #?# """ | | """"" ## #????????????????????# #?# """ | | """ ## #???????????????????## ### | | ## #???????????????????# ! ###+### | | ## #???????????????????# | | # ####### #???????????????????# | | ## # #???????????????????# | | ?# """ + #???????????????????# ###+### | +----------------------------------------------------+ Best States ------------- Heat Dissipation 31 Energy Generation 19 Energy Capacity 310 Matter Stores 300 Matter Capacity 300 Sight Range 16 Robot Scan Range 30 Terrain Scan Density 10 Armor Coverage 450 Weapon Cycling 25 Evasion (%) 60 Targeting Accuracy 12 Recoil Reduction 2 Offensive Hacking 10 Defensive Hacking 7 Item Schematics ----------------- Exp. Sensor Array | -8/Materials | Scanalyzed Robot Schematics ------------------ None Fabricated ------------ Nothing Alien Tech Used ----------------- None Achievements -------------- None Challenges ------------ None Game ------ Seed BlastMetafieldThrusters Manual? 0 Play Time 01:28:04 Cumulative 390.7 hours Start 2021.03.28 @ 17:09:28 End 2021.03.28 @ 19:16:42 Sessions 3 Manual Loads 0 Difficulty Rogue Special Mode None Game No. 130 Rogue 126 Adventurer 4 Explorer 0 Win Type - Total 9 Types 4/1/3/0/0/0/0/1/0 Lore% 79 Gallery% 82 Achievement% 68 Wizard Run 0 Options --------- ASCII 1 Keyboard 0 Movement Arrows Keybinds 0 Fullscreen 1 Font 18/Terminus Map View 76x50 Tactical HUD 1 Map Filters NONE Filters NONE Steam 1 RUN: 6a65949c-e10c-4e58-ac69-6939ed37d013